Workbook

Sheet Chart
A1: Orthodox Easter Computus Jitter (Paschal Moon relative to Mean Elapsed Months)
A2: ="Solar cycle contains 28 years (common = 365 days, every 4th year leap = 366 days) = "&(28*365+7)&" days per cycle = "&reducefraction(28*365+7,7,FALSE,FALSE,TRUE)&" weeks per cycle." -> Solar cycle contains 28 years (common = 365 days, every 4th year leap = 366 days) = 10227 days per cycle = 1461 weeks per cycle.
A3: ="Lunar cycle contains "&MPC&" months ("&FMPC&" full, "&DMPC&" deficient) = "&DPC&" days = "&reducefraction(DPC,7,FALSE,FALSE,TRUE)&" weeks = "&Yerms&" yerms. Lunisolar cycle = 28 x 19 = "&(28*19)&" years." -> Lunar cycle contains 940 months (499 full, 441 deficient) = 27759 days = 3965+4/7 weeks = 58 yerms. Lunisolar cycle = 28 x 19 = 532 years.
A4: ="Mean month = "&"29+"&reducefraction(FMPC,MPC,FALSE,FALSE,TRUE)&" days = 29d 12h 44m "&reducefraction(240*(360*FMPC-191*MPC),MPC,FALSE,FALSE,TRUE)&" seconds, or about 29"&MID(FMPC/MPC,2,20)&" days or 29d 12h 44m "&ROUND(240*(360*FMPC-191*MPC)/MPC,6)&" seconds." -> Mean month = 29+499/940 days = 29d 12h 44m 25+25/47 seconds, or about 29.530851063829787 days or 29d 12h 44m 25.531915 seconds.
A5: ="Duration per ''Part'' = 1/"&MPC&" day = "&reducefraction(24,MPC,FALSE,FALSE,TRUE)&" hour = "&reducefraction(1440,MPC,FALSE,FALSE,TRUE)&" minutes = "&reducefraction(86400,MPC,FALSE,FALSE,TRUE)&" seconds. One hour = "&reducefraction(MPC,24,FALSE,FALSE,TRUE)&" parts." -> Duration per ''Part'' = 1/940 day = 6/235 hour = 1+25/47 minutes = 91+43/47 seconds. One hour = 39+1/6 parts.
Q8: TRUE
Q19: 3
Q20: Selected
Q21: Year in
Q22: Solar Cycle
Q23: (1 to 28)
Q32: 18
Q33: Selected
Q34: Year in
Q35: Lunar Cycle
Q36: (1 to 19)
I45: =ZoomLevel -> 1

Sheet Data
A1: Lunar Cycle Jitter Evaluator
A2: by Dr. Irv Bromberg, University of Toronto, Canada
A3: http://individual.utoronto.ca/intervalmath/jitter/index.html | D3: Jitter | E3: (parts)
A4: Decimal Mean Month: | B4: =29+FMPC/MPC -> 29.53085106 | D4: =MAX(I:I) -> 1401 | E4: maximum | F4: =reducefraction(JitterMax*MPC,MPC,FALSE,FALSE,FALSE) -> 1401
A5: Months per Cycle (Parts per Day): | B5: 940 | C5: months (parts) | D5: =MIN(I:I) -> -470 | E5: minimum | F5: =reducefraction(JitterMin*MPC,MPC,FALSE,FALSE,FALSE) -> –(470)
A6: 30-day Months per Cycle: | B6: 499 | C6: months | D6: =D4-D5 -> 1871 | E6: range | F6: =reducefraction(JitterRange*MPC,MPC,FALSE,FALSE,FALSE) -> 1871
A7: 29-day Months per Cycle: | B7: =MPC-FMPC -> 441 | C7: months | D7: ="Jitter range = "&F6&" parts = "&reducefraction(F6*24,MPC,FALSE,FALSE,FALSE)&" hours" -> Jitter range = 1871 parts = 47 + 181 / 235 hours
A8: Days per Cycle (Parts per Month): | B8: =29*MPC+FMPC -> 27759 | C8: days (parts) | E8: Years Per Cycle: | F8: =4*19 -> 76
A9: Yerms per Cycle: | B9: =2*DPC-59*MPC -> 58 | C9: yerms | D9: Limits for Chart:
A10: Mean Month: | B10: ="29 + "&reducefraction(FMPC,MPC,FALSE,FALSE,FALSE) -> 29 + 499 / 940 | C10: days | D10: x | E10: y | F10: Hours
A11: Mean Month >29d: | B11: =FMPC/MPC -> 0.530851063829787 | C11: days | D11: =A22 -> 1 | E11: =JitterMax -> 1401 | F11: =E11*24/MPC -> 35.77021277
A12: Mean Month >29d 12h 44m: | B12: =reducefraction(240*(360*FMPC-191*MPC),MPC,FALSE,FALSE,TRUE) -> 25+25/47 | C12: seconds | D12: =7*YPC+1 -> 533 | E12: =E11 -> 1401 | F12: =E12*24/MPC -> 35.77021277
A13: … or approximately: | B13: =240*(360*FMPC-191*MPC)/MPC -> 25.53191489 | C13: seconds
A14: Has Yerm Zero: | B14: =MeanMonth>26/49 -> TRUE | D14: =D11 -> 1 | E14: 0
A15: 17-month Yerms per Cycle: | B15: =443*MPC-15*DPC -> 35 | C15: yerms | D15: =D12 -> 533 | E15: 0
A16: 15-month Yerms per Cycle: | B16: =Yerms-n17my -> 23 | C16: yerms
A17: 49-month subcycles: | B17: =INT(Yerms/3) -> 19 | D17: =A22 -> 1 | E17: =JitterMin -> -470 | F17: =E17*24/MPC -> -12
A18: Duration per Part: | B18: =reducefraction(1440,MPC,FALSE,FALSE,FALSE) -> 1 + 25 / 47 | C18: minutes | D18: =D12 -> 533 | E18: =E17 -> -470 | F18: =E18*24/MPC -> -12
G19: Elapsed | H19: Elapsed
D20: Paschal Moon | E20: Elapsed | F20: Paschal Moon | G20: Lunar | H20: Mean Month | I20: Difference
A21: Julian Year | B21: isLeapYear | C21: Year Length | D21: (days) | E21: Days | F21: (parts) | G21: Months | H21: Parts | I21: (parts)
A22: 1 | B22: =isJulianLeapYear(A22) -> FALSE | C22: =IF(B22,366,365) -> 365 | D22: =PaschalMoon(A22) -> 82 | F22: 0 | H22: 0 | I22: =F22-H22 -> 0
A23: =A22+1 -> 2 | B23: =isJulianLeapYear(A23) -> FALSE | C23: =IF(B23,366,365) -> 365 | D23: =PaschalMoon(A23) -> 466 | E23: =D23-D22 -> 384 | F23: =F22+(D23-D22)*PPD -> 360960 | G23: =ROUND((D23-D22)/DecMeanMon,1) -> 13 | H23: =H22+G23*PPM -> 360867 | I23: =F23-H23 -> 93
A24: =A23+1 -> 3 | B24: FALSE | C24: 365 | D24: 820 | E24: 354 | F24: =F23+(D24-D23)*PPD -> 693720 | G24: =ROUND((D24-D23)/DecMeanMon,1) -> 12 | H24: =H23+G24*PPM -> 693975 | I24: -255
A25: 4 | B25: TRUE | C25: 366 | D25: 1175 | E25: 355 | F25: 1027420 | G25: =ROUND((D25-D24)/DecMeanMon,1) -> 12 | H25: 1027083 | I25: 337
A26: 5 | B26: FALSE | C26: 365 | D26: 1559 | E26: 384 | F26: 1388380 | G26: =ROUND((D26-D25)/DecMeanMon,1) -> 13 | H26: 1387950 | I26: 430
A27: 6 | B27: FALSE | C27: 365 | D27: 1913 | E27: 354 | F27: 1721140 | G27: 12 | H27: 1721058 | I27: 82
A28: 7 | B28: FALSE | C28: 365 | D28: 2297 | E28: 384 | F28: 2082100 | G28: 13 | H28: 2081925 | I28: 175
A29: 8 | B29: TRUE | C29: 366 | D29: 2652 | E29: 355 | F29: 2415800 | G29: 12 | H29: 2415033 | I29: 767
A30: 9 | B30: FALSE | C30: 365 | D30: 3006 | E30: 354 | F30: 2748560 | G30: 12 | H30: 2748141 | I30: 419
A31: 10 | B31: FALSE | C31: 365 | D31: 3390 | E31: 384 | F31: 3109520 | G31: 13 | H31: 3109008 | I31: 512
A32: 11 | B32: FALSE | C32: 365 | D32: 3744 | E32: 354 | F32: 3442280 | G32: 12 | H32: 3442116 | I32: 164
A33: 12 | B33: TRUE | C33: 366 | D33: 4099 | E33: 355 | F33: 3775980 | G33: 12 | H33: 3775224 | I33: 756
A34: 13 | B34: FALSE | C34: 365 | D34: 4483 | E34: 384 | F34: 4136940 | G34: 13 | H34: 4136091 | I34: 849
A35: 14 | B35: FALSE | C35: 365 | D35: 4837 | E35: 354 | F35: 4469700 | G35: 12 | H35: 4469199 | I35: 501
A36: 15 | B36: FALSE | C36: 365 | D36: 5191 | E36: 354 | F36: 4802460 | G36: 12 | H36: 4802307 | I36: 153
A37: 16 | B37: TRUE | C37: 366 | D37: 5576 | E37: 385 | F37: 5164360 | G37: 13 | H37: 5163174 | I37: 1186
A38: 17 | B38: FALSE | C38: 365 | D38: 5930 | E38: 354 | F38: 5497120 | G38: 12 | H38: 5496282 | I38: 838
A39: 18 | B39: FALSE | C39: 365 | D39: 6314 | E39: 384 | F39: 5858080 | G39: 13 | H39: 5857149 | I39: 931
A40: 19 | B40: FALSE | C40: 365 | D40: 6667 | E40: 353 | F40: 6189900 | G40: 12 | H40: 6190257 | I40: -357
A41: 20 | B41: TRUE | C41: 366 | D41: 7022 | E41: 355 | F41: 6523600 | G41: 12 | H41: 6523365 | I41: 235
A42: 21 | B42: FALSE | C42: 365 | D42: 7406 | E42: 384 | F42: 6884560 | G42: 13 | H42: 6884232 | I42: 328
A43: 22 | B43: FALSE | C43: 365 | D43: 7760 | E43: 354 | F43: 7217320 | G43: 12 | H43: 7217340 | I43: -20
A44: 23 | B44: FALSE | C44: 365 | D44: 8114 | E44: 354 | F44: 7550080 | G44: 12 | H44: 7550448 | I44: -368
A45: 24 | B45: TRUE | C45: 366 | D45: 8499 | E45: 385 | F45: 7911980 | G45: 13 | H45: 7911315 | I45: 665
A46: 25 | B46: FALSE | C46: 365 | D46: 8853 | E46: 354 | F46: 8244740 | G46: 12 | H46: 8244423 | I46: 317
A47: 26 | B47: FALSE | C47: 365 | D47: 9237 | E47: 384 | F47: 8605700 | G47: 13 | H47: 8605290 | I47: 410
A48: 27 | B48: FALSE | C48: 365 | D48: 9591 | E48: 354 | F48: 8938460 | G48: 12 | H48: 8938398 | I48: 62
A49: 28 | B49: TRUE | C49: 366 | D49: 9946 | E49: 355 | F49: 9272160 | G49: 12 | H49: 9271506 | I49: 654
A50: 29 | B50: FALSE | C50: 365 | D50: 10330 | E50: 384 | F50: 9633120 | G50: 13 | H50: 9632373 | I50: 747
A51: 30 | B51: FALSE | C51: 365 | D51: 10684 | E51: 354 | F51: 9965880 | G51: 12 | H51: 9965481 | I51: 399
A52: 31 | B52: FALSE | C52: 365 | D52: 11038 | E52: 354 | F52: 10298640 | G52: 12 | H52: 10298589 | I52: 51
A53: 32 | B53: TRUE | C53: 366 | D53: 11423 | E53: 385 | F53: 10660540 | G53: 13 | H53: 10659456 | I53: 1084
A54: 33 | B54: FALSE | C54: 365 | D54: 11777 | E54: 354 | F54: 10993300 | G54: 12 | H54: 10992564 | I54: 736
A55: 34 | B55: FALSE | C55: 365 | D55: 12131 | E55: =D55-D54 -> 354 | F55: 11326060 | G55: 12 | H55: 11325672 | I55: 388
A56: 35 | B56: FALSE | C56: 365 | D56: 12515 | E56: 384 | F56: 11687020 | G56: 13 | H56: 11686539 | I56: 481
A57: 36 | B57: TRUE | C57: 366 | D57: 12870 | E57: 355 | F57: 12020720 | G57: 12 | H57: 12019647 | I57: 1073
A58: 37 | B58: FALSE | C58: 365 | D58: 13254 | E58: 384 | F58: 12381680 | G58: 13 | H58: 12380514 | I58: 1166
A59: 38 | B59: FALSE | C59: 365 | D59: 13607 | E59: 353 | F59: 12713500 | G59: 12 | H59: 12713622 | I59: -122
A60: 39 | B60: FALSE | C60: 365 | D60: 13961 | E60: 354 | F60: 13046260 | G60: 12 | H60: 13046730 | I60: -470
A61: 40 | B61: TRUE | C61: 366 | D61: 14346 | E61: 385 | F61: 13408160 | G61: 13 | H61: 13407597 | I61: 563
A62: 41 | B62: FALSE | C62: 365 | D62: 14700 | E62: 354 | F62: 13740920 | G62: 12 | H62: 13740705 | I62: 215
A63: 42 | B63: FALSE | C63: 365 | D63: 15054 | E63: 354 | F63: 14073680 | G63: 12 | H63: 14073813 | I63: -133
A64: 43 | B64: FALSE | C64: 365 | D64: 15438 | E64: 384 | F64: 14434640 | G64: 13 | H64: 14434680 | I64: -40
A65: 44 | B65: TRUE | C65: 366 | D65: 15793 | E65: 355 | F65: 14768340 | G65: 12 | H65: 14767788 | I65: 552
A66: 45 | B66: FALSE | C66: 365 | D66: 16177 | E66: 384 | F66: 15129300 | G66: 13 | H66: 15128655 | I66: 645
A67: 46 | B67: FALSE | C67: 365 | D67: 16531 | E67: 354 | F67: 15462060 | G67: 12 | H67: 15461763 | I67: 297
A68: 47 | B68: FALSE | C68: 365 | D68: 16885 | E68: 354 | F68: 15794820 | G68: 12 | H68: 15794871 | I68: -51
A69: 48 | B69: TRUE | C69: 366 | D69: 17270 | E69: 385 | F69: 16156720 | G69: 13 | H69: 16155738 | I69: 982
A70: 49 | B70: FALSE | C70: 365 | D70: 17624 | E70: 354 | F70: 16489480 | G70: 12 | H70: 16488846 | I70: 634
A71: 50 | B71: FALSE | C71: 365 | D71: 17978 | E71: 354 | F71: 16822240 | G71: 12 | H71: 16821954 | I71: 286
A72: 51 | B72: FALSE | C72: 365 | D72: 18362 | E72: 384 | F72: 17183200 | G72: 13 | H72: 17182821 | I72: 379
A73: 52 | B73: TRUE | C73: 366 | D73: 18717 | E73: 355 | F73: 17516900 | G73: 12 | H73: 17515929 | I73: 971
A74: 53 | B74: FALSE | C74: 365 | D74: 19071 | E74: 354 | F74: 17849660 | G74: 12 | H74: 17849037 | I74: 623
A75: 54 | B75: FALSE | C75: 365 | D75: 19455 | E75: 384 | F75: 18210620 | G75: 13 | H75: 18209904 | I75: 716
A76: 55 | B76: FALSE | C76: 365 | D76: 19809 | E76: 354 | F76: 18543380 | G76: 12 | H76: 18543012 | I76: 368
A77: 56 | B77: TRUE | C77: 366 | D77: 20194 | E77: 385 | F77: 18905280 | G77: 13 | H77: 18903879 | I77: 1401
A78: 57 | B78: FALSE | C78: 365 | D78: 20547 | E78: 353 | F78: 19237100 | G78: 12 | H78: 19236987 | I78: 113
A79: 58 | B79: FALSE | C79: 365 | D79: 20901 | E79: 354 | F79: 19569860 | G79: 12 | H79: 19570095 | I79: -235
A80: 59 | B80: FALSE | C80: 365 | D80: 21285 | E80: 384 | F80: 19930820 | G80: 13 | H80: 19930962 | I80: -142
A81: 60 | B81: TRUE | C81: 366 | D81: 21640 | E81: 355 | F81: 20264520 | G81: 12 | H81: 20264070 | I81: 450
A82: 61 | B82: FALSE | C82: 365 | D82: 21994 | E82: 354 | F82: 20597280 | G82: 12 | H82: 20597178 | I82: 102
A83: 62 | B83: FALSE | C83: 365 | D83: 22378 | E83: 384 | F83: 20958240 | G83: 13 | H83: 20958045 | I83: 195
A84: 63 | B84: FALSE | C84: 365 | D84: 22732 | E84: 354 | F84: 21291000 | G84: 12 | H84: 21291153 | I84: -153
A85: 64 | B85: TRUE | C85: 366 | D85: 23117 | E85: 385 | F85: 21652900 | G85: 13 | H85: 21652020 | I85: 880
A86: 65 | B86: FALSE | C86: 365 | D86: 23471 | E86: 354 | F86: 21985660 | G86: 12 | H86: 21985128 | I86: 532
A87: 66 | B87: =isJulianLeapYear(A87) -> FALSE | C87: =IF(B87,366,365) -> 365 | D87: =PaschalMoon(A87) -> 23825 | E87: =D87-D86 -> 354 | F87: 22318420 | G87: 12 | H87: 22318236 | I87: =F87-H87 -> 184
A88: =A87+1 -> 67 | B88: FALSE | C88: 365 | D88: =PaschalMoon(A88) -> 24209 | E88: =D88-D87 -> 384 | F88: =F87+(D88-D87)*PPD -> 22679380 | G88: =ROUND((D88-D87)/DecMeanMon,1) -> 13 | H88: =H87+G88*PPM -> 22679103 | I88: =F88-H88 -> 277
A89: =A88+1 -> 68 | B89: TRUE | C89: 366 | D89: =PaschalMoon(A89) -> 24564 | E89: =D89-D88 -> 355 | F89: =F88+(D89-D88)*PPD -> 23013080 | G89: =ROUND((D89-D88)/DecMeanMon,1) -> 12 | H89: =H88+G89*PPM -> 23012211 | I89: =F89-H89 -> 869
A90: =A89+1 -> 69 | B90: FALSE | C90: 365 | D90: =PaschalMoon(A90) -> 24918 | E90: =D90-D89 -> 354 | F90: =F89+(D90-D89)*PPD -> 23345840 | G90: =ROUND((D90-D89)/DecMeanMon,1) -> 12 | H90: =H89+G90*PPM -> 23345319 | I90: =F90-H90 -> 521
A91: =A90+1 -> 70 | B91: FALSE | C91: 365 | D91: =PaschalMoon(A91) -> 25302 | E91: =D91-D90 -> 384 | F91: =F90+(D91-D90)*PPD -> 23706800 | G91: =ROUND((D91-D90)/DecMeanMon,1) -> 13 | H91: =H90+G91*PPM -> 23706186 | I91: =F91-H91 -> 614
A92: 71 | B92: FALSE | C92: 365 | D92: 25656 | E92: 354 | F92: 24039560 | G92: 12 | H92: 24039294 | I92: 266
A93: 72 | B93: TRUE | C93: 366 | D93: 26011 | E93: 355 | F93: 24373260 | G93: 12 | H93: 24372402 | I93: 858
A94: 73 | B94: FALSE | C94: 365 | D94: 26395 | E94: 384 | F94: 24734220 | G94: 13 | H94: 24733269 | I94: 951
A95: 74 | B95: FALSE | C95: 365 | D95: 26749 | E95: 354 | F95: 25066980 | G95: 12 | H95: 25066377 | I95: 603
A96: 75 | B96: FALSE | C96: 365 | D96: 27133 | E96: 384 | F96: 25427940 | G96: 13 | H96: 25427244 | I96: 696
A97: 76 | B97: TRUE | C97: 366 | D97: 27487 | E97: 354 | F97: 25760700 | G97: 12 | H97: 25760352 | I97: 348
A98: 77 | B98: FALSE | C98: 365 | D98: 27841 | E98: 354 | F98: 26093460 | G98: 12 | H98: 26093460 | I98: 0
A99: 78 | B99: FALSE | C99: 365 | D99: 28225 | E99: 384 | F99: 26454420 | G99: 13 | H99: 26454327 | I99: 93
A100: 79 | B100: FALSE | C100: 365 | D100: 28579 | E100: 354 | F100: 26787180 | G100: 12 | H100: 26787435 | I100: -255
A101: 80 | B101: TRUE | C101: 366 | D101: 28934 | E101: 355 | F101: 27120880 | G101: 12 | H101: 27120543 | I101: 337
A102: 81 | B102: FALSE | C102: 365 | D102: 29318 | E102: 384 | F102: 27481840 | G102: 13 | H102: 27481410 | I102: 430
A103: 82 | B103: FALSE | C103: 365 | D103: 29672 | E103: 354 | F103: 27814600 | G103: 12 | H103: 27814518 | I103: 82
A104: 83 | B104: FALSE | C104: 365 | D104: 30056 | E104: 384 | F104: 28175560 | G104: 13 | H104: 28175385 | I104: 175
A105: 84 | B105: TRUE | C105: 366 | D105: 30411 | E105: 355 | F105: 28509260 | G105: 12 | H105: 28508493 | I105: 767
A106: 85 | B106: FALSE | C106: 365 | D106: 30765 | E106: 354 | F106: 28842020 | G106: 12 | H106: 28841601 | I106: 419
A107: 86 | B107: FALSE | C107: 365 | D107: 31149 | E107: 384 | F107: 29202980 | G107: 13 | H107: 29202468 | I107: 512
A108: 87 | B108: FALSE | C108: 365 | D108: 31503 | E108: 354 | F108: 29535740 | G108: 12 | H108: 29535576 | I108: 164
A109: 88 | B109: TRUE | C109: 366 | D109: 31858 | E109: 355 | F109: 29869440 | G109: 12 | H109: 29868684 | I109: 756
A110: 89 | B110: FALSE | C110: 365 | D110: 32242 | E110: 384 | F110: 30230400 | G110: 13 | H110: 30229551 | I110: 849
A111: 90 | B111: FALSE | C111: 365 | D111: 32596 | E111: 354 | F111: 30563160 | G111: 12 | H111: 30562659 | I111: 501
A112: 91 | B112: FALSE | C112: 365 | D112: 32950 | E112: 354 | F112: 30895920 | G112: 12 | H112: 30895767 | I112: 153
A113: 92 | B113: TRUE | C113: 366 | D113: 33335 | E113: 385 | F113: 31257820 | G113: 13 | H113: 31256634 | I113: 1186
A114: 93 | B114: FALSE | C114: 365 | D114: 33689 | E114: 354 | F114: 31590580 | G114: 12 | H114: 31589742 | I114: 838
A115: 94 | B115: FALSE | C115: 365 | D115: 34073 | E115: 384 | F115: 31951540 | G115: 13 | H115: 31950609 | I115: 931
A116: 95 | B116: FALSE | C116: 365 | D116: 34426 | E116: 353 | F116: 32283360 | G116: 12 | H116: 32283717 | I116: -357
A117: 96 | B117: TRUE | C117: 366 | D117: 34781 | E117: 355 | F117: 32617060 | G117: 12 | H117: 32616825 | I117: 235
A118: 97 | B118: FALSE | C118: 365 | D118: 35165 | E118: 384 | F118: 32978020 | G118: 13 | H118: 32977692 | I118: 328
A119: 98 | B119: =isJulianLeapYear(A119) -> FALSE | C119: =IF(B119,366,365) -> 365 | D119: 35519 | E119: 354 | F119: 33310780 | G119: 12 | H119: 33310800 | I119: -20
A120: 99 | B120: FALSE | C120: 365 | D120: 35873 | E120: 354 | F120: 33643540 | G120: 12 | H120: 33643908 | I120: -368
A121: 100 | B121: TRUE | C121: 366 | D121: 36258 | E121: 385 | F121: 34005440 | G121: 13 | H121: 34004775 | I121: 665
A122: 101 | B122: FALSE | C122: 365 | D122: 36612 | E122: 354 | F122: 34338200 | G122: 12 | H122: 34337883 | I122: 317
A123: 102 | B123: FALSE | C123: 365 | D123: 36996 | E123: 384 | F123: 34699160 | G123: 13 | H123: 34698750 | I123: 410
A124: 103 | B124: FALSE | C124: 365 | D124: 37350 | E124: 354 | F124: 35031920 | G124: 12 | H124: 35031858 | I124: 62
A125: 104 | B125: TRUE | C125: 366 | D125: 37705 | E125: 355 | F125: 35365620 | G125: 12 | H125: 35364966 | I125: 654
A126: 105 | B126: FALSE | C126: 365 | D126: 38089 | E126: 384 | F126: 35726580 | G126: 13 | H126: 35725833 | I126: 747
A127: 106 | B127: FALSE | C127: 365 | D127: 38443 | E127: 354 | F127: 36059340 | G127: 12 | H127: 36058941 | I127: 399
A128: 107 | B128: FALSE | C128: 365 | D128: 38797 | E128: 354 | F128: 36392100 | G128: 12 | H128: 36392049 | I128: 51
A129: 108 | B129: TRUE | C129: 366 | D129: 39182 | E129: 385 | F129: 36754000 | G129: 13 | H129: 36752916 | I129: 1084
A130: 109 | B130: FALSE | C130: 365 | D130: 39536 | E130: 354 | F130: 37086760 | G130: 12 | H130: 37086024 | I130: 736
A131: 110 | B131: FALSE | C131: 365 | D131: 39890 | E131: 354 | F131: 37419520 | G131: 12 | H131: 37419132 | I131: 388
A132: 111 | B132: FALSE | C132: 365 | D132: 40274 | E132: 384 | F132: 37780480 | G132: 13 | H132: 37779999 | I132: 481
A133: 112 | B133: TRUE | C133: 366 | D133: 40629 | E133: 355 | F133: 38114180 | G133: 12 | H133: 38113107 | I133: 1073
A134: 113 | B134: FALSE | C134: 365 | D134: 41013 | E134: 384 | F134: 38475140 | G134: 13 | H134: 38473974 | I134: 1166
A135: 114 | B135: FALSE | C135: 365 | D135: 41366 | E135: 353 | F135: 38806960 | G135: 12 | H135: 38807082 | I135: -122
A136: 115 | B136: FALSE | C136: 365 | D136: 41720 | E136: 354 | F136: 39139720 | G136: 12 | H136: 39140190 | I136: -470
A137: 116 | B137: TRUE | C137: 366 | D137: 42105 | E137: 385 | F137: 39501620 | G137: 13 | H137: 39501057 | I137: 563
A138: 117 | B138: FALSE | C138: 365 | D138: 42459 | E138: 354 | F138: 39834380 | G138: 12 | H138: 39834165 | I138: 215
A139: 118 | B139: FALSE | C139: 365 | D139: 42813 | E139: 354 | F139: 40167140 | G139: 12 | H139: 40167273 | I139: -133
A140: 119 | B140: FALSE | C140: 365 | D140: 43197 | E140: 384 | F140: 40528100 | G140: 13 | H140: 40528140 | I140: -40
A141: 120 | B141: TRUE | C141: 366 | D141: 43552 | E141: 355 | F141: 40861800 | G141: 12 | H141: 40861248 | I141: 552
A142: 121 | B142: FALSE | C142: 365 | D142: 43936 | E142: 384 | F142: 41222760 | G142: 13 | H142: 41222115 | I142: 645
A143: 122 | B143: FALSE | C143: 365 | D143: 44290 | E143: 354 | F143: 41555520 | G143: 12 | H143: 41555223 | I143: 297
A144: 123 | B144: FALSE | C144: 365 | D144: 44644 | E144: 354 | F144: 41888280 | G144: 12 | H144: 41888331 | I144: -51
A145: 124 | B145: TRUE | C145: 366 | D145: 45029 | E145: 385 | F145: 42250180 | G145: 13 | H145: 42249198 | I145: 982
A146: 125 | B146: FALSE | C146: 365 | D146: 45383 | E146: 354 | F146: 42582940 | G146: 12 | H146: 42582306 | I146: 634
A147: 126 | B147: FALSE | C147: 365 | D147: 45737 | E147: 354 | F147: 42915700 | G147: 12 | H147: 42915414 | I147: 286
A148: 127 | B148: FALSE | C148: 365 | D148: 46121 | E148: 384 | F148: 43276660 | G148: 13 | H148: 43276281 | I148: 379
A149: 128 | B149: TRUE | C149: 366 | D149: 46476 | E149: 355 | F149: 43610360 | G149: 12 | H149: 43609389 | I149: 971
A150: 129 | B150: FALSE | C150: 365 | D150: 46830 | E150: 354 | F150: 43943120 | G150: 12 | H150: 43942497 | I150: 623
A151: 130 | B151: =isJulianLeapYear(A151) -> FALSE | C151: =IF(B151,366,365) -> 365 | D151: 47214 | E151: 384 | F151: 44304080 | G151: 13 | H151: 44303364 | I151: 716
A152: 131 | B152: FALSE | C152: 365 | D152: 47568 | E152: 354 | F152: 44636840 | G152: 12 | H152: 44636472 | I152: 368
A153: 132 | B153: TRUE | C153: 366 | D153: 47953 | E153: 385 | F153: 44998740 | G153: 13 | H153: 44997339 | I153: 1401
A154: 133 | B154: FALSE | C154: 365 | D154: 48306 | E154: 353 | F154: 45330560 | G154: 12 | H154: 45330447 | I154: 113
A155: =A154+1 -> 134 | B155: FALSE | C155: 365 | D155: =PaschalMoon(A155) -> 48660 | E155: =D155-D154 -> 354 | F155: =F154+(D155-D154)*PPD -> 45663320 | G155: =ROUND((D155-D154)/DecMeanMon,1) -> 12 | H155: =H154+G155*PPM -> 45663555 | I155: =F155-H155 -> -235
A156: 135 | B156: FALSE | C156: 365 | D156: 49044 | E156: 384 | F156: 46024280 | G156: 13 | H156: 46024422 | I156: -142
A157: 136 | B157: TRUE | C157: 366 | D157: 49399 | E157: 355 | F157: 46357980 | G157: 12 | H157: 46357530 | I157: 450
A158: 137 | B158: FALSE | C158: 365 | D158: 49753 | E158: 354 | F158: 46690740 | G158: 12 | H158: 46690638 | I158: 102
A159: 138 | B159: FALSE | C159: 365 | D159: 50137 | E159: 384 | F159: 47051700 | G159: 13 | H159: 47051505 | I159: 195
A160: 139 | B160: FALSE | C160: 365 | D160: 50491 | E160: 354 | F160: 47384460 | G160: 12 | H160: 47384613 | I160: -153
A161: 140 | B161: TRUE | C161: 366 | D161: 50876 | E161: 385 | F161: 47746360 | G161: 13 | H161: 47745480 | I161: 880
A162: 141 | B162: FALSE | C162: 365 | D162: 51230 | E162: 354 | F162: 48079120 | G162: 12 | H162: 48078588 | I162: 532
A163: 142 | B163: FALSE | C163: 365 | D163: 51584 | E163: 354 | F163: 48411880 | G163: 12 | H163: 48411696 | I163: 184
A164: 143 | B164: FALSE | C164: 365 | D164: 51968 | E164: 384 | F164: 48772840 | G164: 13 | H164: 48772563 | I164: 277
A165: 144 | B165: TRUE | C165: 366 | D165: 52323 | E165: 355 | F165: 49106540 | G165: 12 | H165: 49105671 | I165: 869
A166: 145 | B166: FALSE | C166: 365 | D166: 52677 | E166: 354 | F166: 49439300 | G166: 12 | H166: 49438779 | I166: 521
A167: 146 | B167: FALSE | C167: 365 | D167: 53061 | E167: 384 | F167: 49800260 | G167: 13 | H167: 49799646 | I167: 614
A168: 147 | B168: FALSE | C168: 365 | D168: 53415 | E168: 354 | F168: 50133020 | G168: 12 | H168: 50132754 | I168: 266
A169: 148 | B169: TRUE | C169: 366 | D169: 53770 | E169: 355 | F169: 50466720 | G169: 12 | H169: 50465862 | I169: 858
A170: 149 | B170: FALSE | C170: 365 | D170: 54154 | E170: 384 | F170: 50827680 | G170: 13 | H170: 50826729 | I170: 951
A171: 150 | B171: FALSE | C171: 365 | D171: 54508 | E171: 354 | F171: 51160440 | G171: 12 | H171: 51159837 | I171: 603
A172: 151 | B172: FALSE | C172: 365 | D172: 54892 | E172: 384 | F172: 51521400 | G172: 13 | H172: 51520704 | I172: 696
A173: 152 | B173: TRUE | C173: 366 | D173: 55246 | E173: 354 | F173: 51854160 | G173: 12 | H173: 51853812 | I173: 348
A174: 153 | B174: FALSE | C174: 365 | D174: 55600 | E174: 354 | F174: 52186920 | G174: 12 | H174: 52186920 | I174: 0
A175: 154 | B175: FALSE | C175: 365 | D175: 55984 | E175: 384 | F175: 52547880 | G175: 13 | H175: 52547787 | I175: 93
A176: 155 | B176: FALSE | C176: 365 | D176: 56338 | E176: 354 | F176: 52880640 | G176: 12 | H176: 52880895 | I176: -255
A177: 156 | B177: TRUE | C177: 366 | D177: 56693 | E177: 355 | F177: 53214340 | G177: 12 | H177: 53214003 | I177: 337
A178: 157 | B178: FALSE | C178: 365 | D178: 57077 | E178: 384 | F178: 53575300 | G178: 13 | H178: 53574870 | I178: 430
A179: 158 | B179: FALSE | C179: 365 | D179: 57431 | E179: 354 | F179: 53908060 | G179: 12 | H179: 53907978 | I179: 82
A180: 159 | B180: FALSE | C180: 365 | D180: 57815 | E180: 384 | F180: 54269020 | G180: 13 | H180: 54268845 | I180: 175
A181: 160 | B181: TRUE | C181: 366 | D181: 58170 | E181: 355 | F181: 54602720 | G181: 12 | H181: 54601953 | I181: 767
A182: 161 | B182: FALSE | C182: 365 | D182: 58524 | E182: 354 | F182: 54935480 | G182: 12 | H182: 54935061 | I182: 419
A183: 162 | B183: =isJulianLeapYear(A183) -> FALSE | C183: =IF(B183,366,365) -> 365 | D183: 58908 | E183: 384 | F183: 55296440 | G183: 13 | H183: 55295928 | I183: 512
A184: 163 | B184: FALSE | C184: 365 | D184: 59262 | E184: 354 | F184: 55629200 | G184: 12 | H184: 55629036 | I184: 164
A185: 164 | B185: TRUE | C185: 366 | D185: 59617 | E185: 355 | F185: 55962900 | G185: 12 | H185: 55962144 | I185: 756
A186: 165 | B186: FALSE | C186: 365 | D186: 60001 | E186: 384 | F186: 56323860 | G186: 13 | H186: 56323011 | I186: 849
A187: 166 | B187: FALSE | C187: 365 | D187: 60355 | E187: 354 | F187: 56656620 | G187: 12 | H187: 56656119 | I187: 501
A188: 167 | B188: FALSE | C188: 365 | D188: 60709 | E188: 354 | F188: 56989380 | G188: 12 | H188: 56989227 | I188: 153
A189: 168 | B189: TRUE | C189: 366 | D189: 61094 | E189: 385 | F189: 57351280 | G189: 13 | H189: 57350094 | I189: 1186
A190: 169 | B190: FALSE | C190: 365 | D190: 61448 | E190: 354 | F190: 57684040 | G190: 12 | H190: 57683202 | I190: 838
A191: 170 | B191: FALSE | C191: 365 | D191: 61832 | E191: 384 | F191: 58045000 | G191: 13 | H191: 58044069 | I191: 931
A192: 171 | B192: FALSE | C192: 365 | D192: 62185 | E192: 353 | F192: 58376820 | G192: 12 | H192: 58377177 | I192: -357
A193: 172 | B193: TRUE | C193: 366 | D193: 62540 | E193: 355 | F193: 58710520 | G193: 12 | H193: 58710285 | I193: 235
A194: 173 | B194: FALSE | C194: 365 | D194: 62924 | E194: 384 | F194: 59071480 | G194: 13 | H194: 59071152 | I194: 328
A195: 174 | B195: FALSE | C195: 365 | D195: 63278 | E195: 354 | F195: 59404240 | G195: 12 | H195: 59404260 | I195: -20
A196: 175 | B196: FALSE | C196: 365 | D196: 63632 | E196: 354 | F196: 59737000 | G196: 12 | H196: 59737368 | I196: -368
A197: 176 | B197: TRUE | C197: 366 | D197: 64017 | E197: 385 | F197: 60098900 | G197: 13 | H197: 60098235 | I197: 665
A198: 177 | B198: FALSE | C198: 365 | D198: 64371 | E198: 354 | F198: 60431660 | G198: 12 | H198: 60431343 | I198: 317
A199: 178 | B199: FALSE | C199: 365 | D199: 64755 | E199: 384 | F199: 60792620 | G199: 13 | H199: 60792210 | I199: 410
A200: 179 | B200: FALSE | C200: 365 | D200: 65109 | E200: 354 | F200: 61125380 | G200: 12 | H200: 61125318 | I200: 62
... 391 more rows

Sheet Solar Cycle
A1: Year in Solar Cycle | B1: Solar Cycle | C1: Paschal Moon | D1: Elapsed | E1: Difference | F1: Top
A2: =StartSolar -> 3 | B2: 1 | C2: =LOOKUP(A2,Data!A$22:A$591,Data!F$22:F$591) -> 693720 | D2: =LOOKUP(A2,Data!A$22:A$591,Data!H$22:H$591) -> 693975 | E2: =C2-D2 -> -255 | F2: 1500
A3: =A2+28 -> 31 | B3: =MOD(B2,28)+1 -> 2 | C3: =LOOKUP(A3,Data!A$22:A$591,Data!F$22:F$591) -> 10298640 | D3: =LOOKUP(A3,Data!A$22:A$591,Data!H$22:H$591) -> 10298589 | E3: =C3-D3 -> 51 | F3: =F2 -> 1500
A4: =A3+28 -> 59 | B4: =MOD(B3,28)+1 -> 3 | C4: =LOOKUP(A4,Data!A$22:A$591,Data!F$22:F$591) -> 19930820 | D4: =LOOKUP(A4,Data!A$22:A$591,Data!H$22:H$591) -> 19930962 | E4: =C4-D4 -> -142 | F4: =F3 -> 1500
A5: 87 | B5: 4 | C5: =LOOKUP(A5,Data!A$22:A$591,Data!F$22:F$591) -> 29535740 | D5: =LOOKUP(A5,Data!A$22:A$591,Data!H$22:H$591) -> 29535576 | E5: 164 | F5: 1500
A6: 115 | B6: 5 | C6: =LOOKUP(A6,Data!A$22:A$591,Data!F$22:F$591) -> 39139720 | D6: =LOOKUP(A6,Data!A$22:A$591,Data!H$22:H$591) -> 39140190 | E6: -470 | F6: 1500
A7: 143 | B7: 6 | C7: =LOOKUP(A7,Data!A$22:A$591,Data!F$22:F$591) -> 48772840 | D7: =LOOKUP(A7,Data!A$22:A$591,Data!H$22:H$591) -> 48772563 | E7: 277 | F7: 1500
A8: 171 | B8: 7 | C8: =LOOKUP(A8,Data!A$22:A$591,Data!F$22:F$591) -> 58376820 | D8: =LOOKUP(A8,Data!A$22:A$591,Data!H$22:H$591) -> 58377177 | E8: -357 | F8: 1500
A9: 199 | B9: 8 | C9: =LOOKUP(A9,Data!A$22:A$591,Data!F$22:F$591) -> 67981740 | D9: =LOOKUP(A9,Data!A$22:A$591,Data!H$22:H$591) -> 67981791 | E9: -51 | F9: 1500
A10: 227 | B10: 9 | C10: =LOOKUP(A10,Data!A$22:A$591,Data!F$22:F$591) -> 77614860 | D10: =LOOKUP(A10,Data!A$22:A$591,Data!H$22:H$591) -> 77614164 | E10: 696 | F10: 1500
A11: 255 | B11: 10 | C11: =LOOKUP(A11,Data!A$22:A$591,Data!F$22:F$591) -> 87218840 | D11: =LOOKUP(A11,Data!A$22:A$591,Data!H$22:H$591) -> 87218778 | E11: 62 | F11: 1500
A12: 283 | B12: 11 | C12: =LOOKUP(A12,Data!A$22:A$591,Data!F$22:F$591) -> 96823760 | D12: =LOOKUP(A12,Data!A$22:A$591,Data!H$22:H$591) -> 96823392 | E12: 368 | F12: 1500
A13: 311 | B13: 12 | C13: =LOOKUP(A13,Data!A$22:A$591,Data!F$22:F$591) -> 106455940 | D13: =LOOKUP(A13,Data!A$22:A$591,Data!H$22:H$591) -> 106455765 | E13: 175 | F13: 1500
A14: 339 | B14: 13 | C14: =LOOKUP(A14,Data!A$22:A$591,Data!F$22:F$591) -> 116060860 | D14: =LOOKUP(A14,Data!A$22:A$591,Data!H$22:H$591) -> 116060379 | E14: 481 | F14: 1500
A15: 367 | B15: 14 | C15: =LOOKUP(A15,Data!A$22:A$591,Data!F$22:F$591) -> 125664840 | D15: =LOOKUP(A15,Data!A$22:A$591,Data!H$22:H$591) -> 125664993 | E15: -153 | F15: 1500
A16: 395 | B16: 15 | C16: =LOOKUP(A16,Data!A$22:A$591,Data!F$22:F$591) -> 135269760 | D16: =LOOKUP(A16,Data!A$22:A$591,Data!H$22:H$591) -> 135269607 | E16: 153 | F16: 1500
A17: 423 | B17: 16 | C17: =LOOKUP(A17,Data!A$22:A$591,Data!F$22:F$591) -> 144901940 | D17: =LOOKUP(A17,Data!A$22:A$591,Data!H$22:H$591) -> 144901980 | E17: -40 | F17: 1500
A18: 451 | B18: 17 | C18: =LOOKUP(A18,Data!A$22:A$591,Data!F$22:F$591) -> 154506860 | D18: =LOOKUP(A18,Data!A$22:A$591,Data!H$22:H$591) -> 154506594 | E18: 266 | F18: 1500
A19: 479 | B19: 18 | C19: =LOOKUP(A19,Data!A$22:A$591,Data!F$22:F$591) -> 164110840 | D19: =LOOKUP(A19,Data!A$22:A$591,Data!H$22:H$591) -> 164111208 | E19: -368 | F19: 1500
A20: 507 | B20: 19 | C20: =LOOKUP(A20,Data!A$22:A$591,Data!F$22:F$591) -> 173743960 | D20: =LOOKUP(A20,Data!A$22:A$591,Data!H$22:H$591) -> 173743581 | E20: 379 | F20: 1500
A21: 535 | B21: 20 | C21: =LOOKUP(A21,Data!A$22:A$591,Data!F$22:F$591) -> 183347940 | D21: =LOOKUP(A21,Data!A$22:A$591,Data!H$22:H$591) -> 183348195 | E21: -255 | F21: 1500
A22: 563 | B22: 21 | C22: =LOOKUP(A22,Data!A$22:A$591,Data!F$22:F$591) -> 192952860 | D22: =LOOKUP(A22,Data!A$22:A$591,Data!H$22:H$591) -> 192952809 | E22: 51 | F22: 1500
A23: 591 | B23: 22 | C23: =LOOKUP(A23,Data!A$22:A$591,Data!F$22:F$591) -> 195367720 | D23: =LOOKUP(A23,Data!A$22:A$591,Data!H$22:H$591) -> 195367842 | E23: -122 | F23: 1500
A24: 619 | B24: 23 | C24: =LOOKUP(A24,Data!A$22:A$591,Data!F$22:F$591) -> 195367720 | D24: =LOOKUP(A24,Data!A$22:A$591,Data!H$22:H$591) -> 195367842 | E24: -122 | F24: 1500
A25: 647 | B25: 24 | C25: =LOOKUP(A25,Data!A$22:A$591,Data!F$22:F$591) -> 195367720 | D25: =LOOKUP(A25,Data!A$22:A$591,Data!H$22:H$591) -> 195367842 | E25: -122 | F25: 1500
A26: 675 | B26: 25 | C26: =LOOKUP(A26,Data!A$22:A$591,Data!F$22:F$591) -> 195367720 | D26: =LOOKUP(A26,Data!A$22:A$591,Data!H$22:H$591) -> 195367842 | E26: -122 | F26: 1500
A27: 703 | B27: 26 | C27: =LOOKUP(A27,Data!A$22:A$591,Data!F$22:F$591) -> 195367720 | D27: =LOOKUP(A27,Data!A$22:A$591,Data!H$22:H$591) -> 195367842 | E27: -122 | F27: 1500
A28: 731 | B28: 27 | C28: =LOOKUP(A28,Data!A$22:A$591,Data!F$22:F$591) -> 195367720 | D28: =LOOKUP(A28,Data!A$22:A$591,Data!H$22:H$591) -> 195367842 | E28: -122 | F28: 1500

Sheet Lunar Cycle
A1: Year in Lunar Cycle | B1: Lunar Cycle | C1: Paschal Moon | D1: Elapsed | E1: Difference | F1: Top
A2: =StartLunar -> 18 | B2: 1 | C2: =LOOKUP(A2,Data!A$22:A$591,Data!F$22:F$591) -> 5858080 | D2: =LOOKUP(A2,Data!A$22:A$591,Data!H$22:H$591) -> 5857149 | E2: =C2-D2 -> 931 | F2: 1500
A3: =A2+19 -> 37 | B3: =MOD(B2,19)+1 -> 2 | C3: =LOOKUP(A3,Data!A$22:A$591,Data!F$22:F$591) -> 12381680 | D3: =LOOKUP(A3,Data!A$22:A$591,Data!H$22:H$591) -> 12380514 | E3: =C3-D3 -> 1166 | F3: =F2 -> 1500
A4: =A3+19 -> 56 | B4: =MOD(B3,19)+1 -> 3 | C4: =LOOKUP(A4,Data!A$22:A$591,Data!F$22:F$591) -> 18905280 | D4: =LOOKUP(A4,Data!A$22:A$591,Data!H$22:H$591) -> 18903879 | E4: =C4-D4 -> 1401 | F4: =F3 -> 1500
A5: 75 | B5: 4 | C5: =LOOKUP(A5,Data!A$22:A$591,Data!F$22:F$591) -> 25427940 | D5: =LOOKUP(A5,Data!A$22:A$591,Data!H$22:H$591) -> 25427244 | E5: 696 | F5: 1500
A6: 94 | B6: 5 | C6: =LOOKUP(A6,Data!A$22:A$591,Data!F$22:F$591) -> 31951540 | D6: =LOOKUP(A6,Data!A$22:A$591,Data!H$22:H$591) -> 31950609 | E6: 931 | F6: 1500
A7: 113 | B7: 6 | C7: =LOOKUP(A7,Data!A$22:A$591,Data!F$22:F$591) -> 38475140 | D7: =LOOKUP(A7,Data!A$22:A$591,Data!H$22:H$591) -> 38473974 | E7: 1166 | F7: 1500
A8: 132 | B8: 7 | C8: =LOOKUP(A8,Data!A$22:A$591,Data!F$22:F$591) -> 44998740 | D8: =LOOKUP(A8,Data!A$22:A$591,Data!H$22:H$591) -> 44997339 | E8: 1401 | F8: 1500
A9: 151 | B9: 8 | C9: =LOOKUP(A9,Data!A$22:A$591,Data!F$22:F$591) -> 51521400 | D9: =LOOKUP(A9,Data!A$22:A$591,Data!H$22:H$591) -> 51520704 | E9: 696 | F9: 1500
A10: 170 | B10: 9 | C10: =LOOKUP(A10,Data!A$22:A$591,Data!F$22:F$591) -> 58045000 | D10: =LOOKUP(A10,Data!A$22:A$591,Data!H$22:H$591) -> 58044069 | E10: 931 | F10: 1500
A11: 189 | B11: 10 | C11: =LOOKUP(A11,Data!A$22:A$591,Data!F$22:F$591) -> 64568600 | D11: =LOOKUP(A11,Data!A$22:A$591,Data!H$22:H$591) -> 64567434 | E11: 1166 | F11: 1500
A12: 208 | B12: 11 | C12: =LOOKUP(A12,Data!A$22:A$591,Data!F$22:F$591) -> 71092200 | D12: =LOOKUP(A12,Data!A$22:A$591,Data!H$22:H$591) -> 71090799 | E12: 1401 | F12: 1500
A13: 227 | B13: 12 | C13: =LOOKUP(A13,Data!A$22:A$591,Data!F$22:F$591) -> 77614860 | D13: =LOOKUP(A13,Data!A$22:A$591,Data!H$22:H$591) -> 77614164 | E13: 696 | F13: 1500
A14: 246 | B14: 13 | C14: =LOOKUP(A14,Data!A$22:A$591,Data!F$22:F$591) -> 84138460 | D14: =LOOKUP(A14,Data!A$22:A$591,Data!H$22:H$591) -> 84137529 | E14: 931 | F14: 1500
A15: 265 | B15: 14 | C15: =LOOKUP(A15,Data!A$22:A$591,Data!F$22:F$591) -> 90662060 | D15: =LOOKUP(A15,Data!A$22:A$591,Data!H$22:H$591) -> 90660894 | E15: 1166 | F15: 1500
A16: 284 | B16: 15 | C16: =LOOKUP(A16,Data!A$22:A$591,Data!F$22:F$591) -> 97185660 | D16: =LOOKUP(A16,Data!A$22:A$591,Data!H$22:H$591) -> 97184259 | E16: 1401 | F16: 1500
A17: 303 | B17: 16 | C17: =LOOKUP(A17,Data!A$22:A$591,Data!F$22:F$591) -> 103708320 | D17: =LOOKUP(A17,Data!A$22:A$591,Data!H$22:H$591) -> 103707624 | E17: 696 | F17: 1500
A18: 322 | B18: 17 | C18: =LOOKUP(A18,Data!A$22:A$591,Data!F$22:F$591) -> 110231920 | D18: =LOOKUP(A18,Data!A$22:A$591,Data!H$22:H$591) -> 110230989 | E18: 931 | F18: 1500
A19: 341 | B19: 18 | C19: =LOOKUP(A19,Data!A$22:A$591,Data!F$22:F$591) -> 116755520 | D19: =LOOKUP(A19,Data!A$22:A$591,Data!H$22:H$591) -> 116754354 | E19: 1166 | F19: 1500
A20: 360 | B20: 19 | C20: =LOOKUP(A20,Data!A$22:A$591,Data!F$22:F$591) -> 123279120 | D20: =LOOKUP(A20,Data!A$22:A$591,Data!H$22:H$591) -> 123277719 | E20: 1401 | F20: 1500
A21: 379 | B21: 1 | C21: =LOOKUP(A21,Data!A$22:A$591,Data!F$22:F$591) -> 129801780 | D21: =LOOKUP(A21,Data!A$22:A$591,Data!H$22:H$591) -> 129801084 | E21: 696 | F21: 1500
A22: 398 | B22: 2 | C22: =LOOKUP(A22,Data!A$22:A$591,Data!F$22:F$591) -> 136325380 | D22: =LOOKUP(A22,Data!A$22:A$591,Data!H$22:H$591) -> 136324449 | E22: 931 | F22: 1500
A23: =A22+19 -> 417 | B23: =MOD(B22,19)+1 -> 3 | C23: =LOOKUP(A23,Data!A$22:A$591,Data!F$22:F$591) -> 142848980 | D23: =LOOKUP(A23,Data!A$22:A$591,Data!H$22:H$591) -> 142847814 | E23: =C23-D23 -> 1166 | F23: =F22 -> 1500
A24: 436 | B24: 4 | C24: =LOOKUP(A24,Data!A$22:A$591,Data!F$22:F$591) -> 149372580 | D24: =LOOKUP(A24,Data!A$22:A$591,Data!H$22:H$591) -> 149371179 | E24: 1401 | F24: 1500
A25: 455 | B25: 5 | C25: =LOOKUP(A25,Data!A$22:A$591,Data!F$22:F$591) -> 155895240 | D25: =LOOKUP(A25,Data!A$22:A$591,Data!H$22:H$591) -> 155894544 | E25: 696 | F25: 1500
A26: 474 | B26: 6 | C26: =LOOKUP(A26,Data!A$22:A$591,Data!F$22:F$591) -> 162418840 | D26: =LOOKUP(A26,Data!A$22:A$591,Data!H$22:H$591) -> 162417909 | E26: 931 | F26: 1500
A27: 493 | B27: 7 | C27: =LOOKUP(A27,Data!A$22:A$591,Data!F$22:F$591) -> 168942440 | D27: =LOOKUP(A27,Data!A$22:A$591,Data!H$22:H$591) -> 168941274 | E27: 1166 | F27: 1500
A28: 512 | B28: 8 | C28: =LOOKUP(A28,Data!A$22:A$591,Data!F$22:F$591) -> 175466040 | D28: =LOOKUP(A28,Data!A$22:A$591,Data!H$22:H$591) -> 175464639 | E28: 1401 | F28: 1500
A29: 531 | B29: 9 | C29: =LOOKUP(A29,Data!A$22:A$591,Data!F$22:F$591) -> 181988700 | D29: =LOOKUP(A29,Data!A$22:A$591,Data!H$22:H$591) -> 181988004 | E29: 696 | F29: 1500
A30: 550 | B30: 10 | C30: =LOOKUP(A30,Data!A$22:A$591,Data!F$22:F$591) -> 188512300 | D30: =LOOKUP(A30,Data!A$22:A$591,Data!H$22:H$591) -> 188511369 | E30: 931 | F30: 1500
A31: 569 | B31: 11 | C31: =LOOKUP(A31,Data!A$22:A$591,Data!F$22:F$591) -> 195035900 | D31: =LOOKUP(A31,Data!A$22:A$591,Data!H$22:H$591) -> 195034734 | E31: 1166 | F31: 1500
A32: 588 | B32: 12 | C32: =LOOKUP(A32,Data!A$22:A$591,Data!F$22:F$591) -> 195367720 | D32: =LOOKUP(A32,Data!A$22:A$591,Data!H$22:H$591) -> 195367842 | E32: -122 | F32: 1500
A33: 607 | B33: 13 | C33: =LOOKUP(A33,Data!A$22:A$591,Data!F$22:F$591) -> 195367720 | D33: =LOOKUP(A33,Data!A$22:A$591,Data!H$22:H$591) -> 195367842 | E33: -122 | F33: 1500
A34: 626 | B34: 14 | C34: =LOOKUP(A34,Data!A$22:A$591,Data!F$22:F$591) -> 195367720 | D34: =LOOKUP(A34,Data!A$22:A$591,Data!H$22:H$591) -> 195367842 | E34: -122 | F34: 1500
A35: 645 | B35: 15 | C35: =LOOKUP(A35,Data!A$22:A$591,Data!F$22:F$591) -> 195367720 | D35: =LOOKUP(A35,Data!A$22:A$591,Data!H$22:H$591) -> 195367842 | E35: -122 | F35: 1500
A36: 664 | B36: 16 | C36: =LOOKUP(A36,Data!A$22:A$591,Data!F$22:F$591) -> 195367720 | D36: =LOOKUP(A36,Data!A$22:A$591,Data!H$22:H$591) -> 195367842 | E36: -122 | F36: 1500

Sheet Zoom
A1: 1 | B1: = Current Zoom Level
A2: Level | B2: Years | C2: MajorTick | D2: MinorTick | E2: Shift | F2: Connect
A3: =ROW()-3 -> 0 | B3: 532 | C3: 76 | D3: 19 | F3: FALSE
A4: 1 | B4: 532 | C4: 76 | D4: 19 | F4: TRUE
A5: 2 | B5: =B4/2 -> 266 | C5: 19 | D5: 1 | E5: 76 | F5: TRUE
A6: 3 | B6: 152 | C6: 19 | D6: 1 | E6: 76 | F6: TRUE
A7: 4 | B7: 152 | C7: 4 | D7: 1 | E7: 76 | F7: TRUE
A8: 5 | B8: 76 | C8: 4 | D8: 1 | E8: =2*19 -> 38 | F8: TRUE
A9: 6 | B9: 19 | C9: 1 | D9: 1 | E9: 19 | F9: TRUE
A10: 7 | B10: 19 | C10: 1 | D10: 1 | E10: 19 | F10: FALSE

Sheet Labels
A1: Year | B1: Hours | C1: ="Span "&B2-B18&"h" -> Span 48h
A2: 533 | B2: 36
A3: =A2 -> 533 | B3: =B2-3 -> 33
A4: =A3 -> 533 | B4: =B3-3 -> 30
A5: =A4 -> 533 | B5: 27
A6: =A5 -> 533 | B6: 24
A7: 533 | B7: 21
A8: 533 | B8: 18
A9: 533 | B9: 15
A10: 533 | B10: 12
A11: 533 | B11: 9
A12: 533 | B12: 6
A13: 533 | B13: 3
A14: 533 | B14: 0
A15: 533 | B15: -3
A16: 533 | B16: -6
A17: =A16 -> 533 | B17: -9
A18: =A17 -> 533 | B18: -12
